bitfinex/quotes_ETHUSD_20250721
["timestamp","ask_amount","ask_price","bid_price","bid_amount"]
[1753117439567,0.002,3776.6,3776.5,2.65518809]
[1753117439770,0.002,3776.6,3775.9,4.248]
[1753117440068,0.002,3776.6,3776.0,0.00723929]
[1753117440276,0.002,3776.6,3776.5,2.64795445]
[1753117440572,0.002,3776.6,3776.5,3.12518809]
[1753117440773,0.002,3776.6,3776.4,2.64796227]
[1753117440935,0.757,3776.6,3776.2,4.247]
[1753117441279,0.002,3776.6,3776.5,2.64795445]
[1753117441442,0.002,3776.6,3775.7,0.47]
[1753117441647,1.2412,3776.5,3775.1,0.7686]
[1753117441944,0.002,3776.6,3774.6,4.716]
[1753117441945,0.7973,3776.1,3774.6,4.716]
[1753117442160,0.85673381,3776.0,3774.6,4.716]
[1753117442363,4.2412,3775.9,3774.6,4.246]
[1753117442541,2.64844536,3775.8,3775.0,2.64894219]
[1753117442891,2.64844536,3775.8,3774.6,4.246]
[1753117442892,2.89551207,3775.8,3775.1,2.64892097]
[1753117443095,0.24706671,3775.8,3775.2,0.00725332]
[1753117443237,1.89240967,3775.8,3775.2,2.65609753]
[1753117443437,0.7973,3775.9,3775.0,2.64895616]
[1753117443683,0.4439,3775.7,3774.7,2.64916305]
[1753117443843,2.64872196,3775.5,3774.3,4.246]
[1753117444048,0.4439,3775.4,3774.7,2.64921287]
[1753117444277,0.4439,3775.4,3774.8,2.6490889]
[1753117444846,0.4439,3775.4,3775.0,2.6490053]
[1753117445045,0.7973,3775.6,3775.3,2.6487327]
[1753117445365,0.7973,3775.6,3774.8,0.47725741]
[1753117445877,0.7973,3775.6,3775.5,2.6486558]
[1753117446077,0.24706671,3775.9,3775.5,2.64861489]
[1753117446574,0.4439,3775.9,3775.5,2.64861489]
[1753117446887,0.47700556,3775.8,3775.3,2.64873397]
[1753117447094,0.47700556,3775.8,3775.1,0.00725233]
[1753117447294,0.7973,3776.0,3775.7,2.64850551]
[1753117447443,0.7973,3776.0,3775.1,2.65615042]
[1753117447643,0.7973,3776.0,3775.1,3.12615042]
[1753117447848,0.7973,3776.0,3775.4,2.64869027]
[1753117448077,0.7973,3776.0,3775.1,0.47]
[1753117448384,0.7973,3776.0,3775.7,2.64850401]
[1753117448546,0.7973,3776.0,3775.8,2.64844311]
[1753117448750,0.7973,3776.0,3775.6,2.64858454]
[1753117449080,0.132,3775.6,3775.3,0.00724766]
[1753117449282,0.132,3775.6,3775.5,2.6486558]
[1753117449581,0.132,3775.6,3775.4,2.648712]
[1753117449778,0.132,3775.6,3775.5,2.6486558]
[1753117451183,0.132,3776.0,3775.9,2.64837522]
[1753117451382,14.5,3777.0,3775.9,0.47]
[1753117451583,14.5,3777.0,3775.8,0.00724435]
[1753117451584,0.7741,3777.0,3776.5,2.64795445]
[1753117451787,0.002,3777.5,3776.5,2.64795445]
[1753117451788,0.7741,3777.4,3776.5,3.25718809]
[1753117451970,0.132,3777.2,3776.5,3.25718809]
[1753117453302,0.002,3777.5,3776.7,2.64781422]
[1753117453602,1e-08,3776.8,3776.7,6.89804436]
[1753117453764,1e-08,3776.8,3776.7,7.02281422]
[1753117453965,1e-08,3776.8,3776.7,7.49281422]
[1753117454288,1e-08,3776.8,3776.7,7.49181422]
[1753117455271,1e-08,3776.8,3776.7,3.24981422]
[1753117455569,1e-08,3776.8,3776.7,7.49904436]
[1753117455768,1e-08,3776.8,3776.7,7.49181422]
[1753117456084,1e-08,3776.8,3776.7,7.02181422]
[1753117457873,1e-08,3776.8,3776.7,7.47281422]
[1753117463236,1e-08,3776.8,3776.7,7.46881422]
[1753117464784,1e-08,3776.8,3776.7,11.25181422]
[1753117464985,1e-08,3776.8,3776.7,11.80181422]
[1753117465488,1e-08,3776.8,3776.7,10.79981422]
[1753117466028,1e-08,3776.8,3776.7,11.25081422]
[1753117466415,1e-08,3776.8,3776.7,7.36750866]
[1753117466733,1e-08,3776.8,3776.7,11.25081422]
[1753117466927,1e-08,3776.8,3776.7,7.01381422]
[1753117467112,1e-08,3776.8,3776.7,11.25081422]
[1753117469231,1e-08,3776.8,3776.7,11.24981422]
[1753117469462,1e-08,3776.8,3776.7,2.77981422]
[1753117469602,1e-08,3776.8,3776.7,2.64781422]
[1753117469911,1e-08,3776.8,3776.7,6.88381422]
[1753117470112,1e-08,3776.8,3776.7,7.33481422]
[1753117470318,1e-08,3776.8,3776.7,2.64781422]
[1753117470512,1e-08,3776.8,3776.7,6.89004436]
[1753117470714,1e-08,3776.8,3776.7,7.33381422]
[1753117470924,1e-08,3776.8,3776.7,7.88381422]
[1753117471124,1e-08,3776.8,3776.7,10.88381422]
[1753117471639,1e-08,3776.8,3776.7,11.67381422]
[1753117472793,1e-08,3777.5,3777.2,2.64746372]
[1753117473000,0.002,3778.1,3778.0,2.64690312]
[1753117473201,0.002,3778.1,3778.0,6.88190312]
[1753117473402,0.002,3778.1,3778.0,7.33290312]
[1753117474001,0.002,3778.1,3778.0,10.33290312]
[1753117474203,1e-08,3778.1,3778.0,10.88290312]
[1753117474815,1e-08,3778.4,3778.3,2.64669295]
[1753117475019,1e-08,3778.4,3778.3,10.43789506]
[1753117475197,1e-08,3778.4,3778.3,21.6025071]
[1753117475934,1e-08,3778.4,3778.3,22.3675071]
[1753117477842,0.761,3780.3,3779.0,3.0]
[1753117478003,0.761,3780.3,3780.0,2.64543892]
[1753117478209,0.4672,3780.2,3780.1,2.64543266]
[1753117478632,2.2871,3780.3,3780.2,2.64536267]
[1753117479254,0.761,3780.3,3780.2,2.64536267]
[1753117480177,0.132,3780.4,3780.0,4.231]
[1753117480464,0.4672,3780.3,3780.1,2.64542363]
[1753117480655,0.4672,3780.2,3779.8,0.132]
[1753117480955,0.132,3779.9,3779.3,0.132]
[1753117481107,0.40239941,3780.1,3779.4,6.88309957]
[1753117481108,0.132,3779.7,3779.4,6.88309957]
[1753117481310,0.4672,3779.6,3779.5,4.23]
[1753117481531,0.4672,3779.6,3779.5,6.87585262]
[1753117481749,0.4672,3779.6,3779.0,0.132]
[1753117482058,0.13562,3779.5,3779.4,2.64592263]
[1753117482359,0.13562,3779.5,3779.3,2.6459255]
[1753117482559,0.132,3779.4,3779.1,0.00718576]
[1753117482747,0.5992,3779.4,3779.1,2.65331916]
[1753117482934,0.5992,3779.4,3779.3,2.64599264]
[1753117483340,0.132,3779.4,3779.3,2.64599264]
[1753117483539,0.757,3779.8,3779.7,2.64571262]
[1753117484047,0.4672,3780.6,3779.7,4.2361776]
[1753117484259,0.132,3780.3,3779.7,4.229]
[1753117484458,0.772,3780.2,3779.8,2.64559629]
[1753117484627,0.4672,3780.1,3779.9,0.00717332]
[1753117484831,0.4672,3780.1,3779.7,0.00717332]
[1753117485159,0.4672,3780.0,3779.9,2.64551092]
[1753117485335,0.60432,3780.0,3779.8,2.64559066]
[1753117485535,0.8081,3779.8,3779.5,2.64580115]
[1753117485763,0.5992,3779.7,3779.5,2.64580115]
[1753117485957,0.5992,3779.7,3779.6,2.64578262]
[1753117485958,0.132,3779.7,3779.6,2.64578262]
[1753117486648,0.132,3779.7,3779.5,2.64583422]
[1753117487051,0.4378,3779.6,3779.5,2.64583422]
[1753117487853,0.4378,3779.6,3779.4,2.6459184]
[1753117488152,0.132,3779.7,3779.6,2.64578262]
[1753117488866,0.5698,3779.7,3779.6,2.64578262]
[1753117489030,0.5698,3779.7,3779.3,2.64598205]
[1753117489235,1.23167228,3779.6,3779.1,2.64612853]
[1753117489566,0.7608,3779.6,3779.5,2.64585262]
[1753117494911,0.03306615,3780.3,3779.4,0.00718186]
[1753117495085,0.47086615,3780.3,3779.5,2.64585262]
[1753117495251,1.28416615,3780.3,3780.1,2.64542598]
[1753117495451,0.86641662,3780.2,3780.1,2.64542598]
[1753117495651,0.86641662,3780.2,3780.0,2.64548361]
[1753117495901,0.4708679,3780.1,3780.0,2.64548361]
[1753117496199,0.4708679,3780.1,3779.8,2.6456158]
[1753117496401,0.0330679,3780.1,3779.8,2.6456158]
[1753117496602,0.4378,3780.0,3779.8,2.6456158]
[1753117496760,0.46168365,3780.2,3779.8,2.6456158]
[1753117496957,0.8133,3779.8,3779.5,0.00717233]
[1753117497185,0.84637053,3779.8,3778.5,0.31209813]
[1753117497390,7.71601621,3779.8,3779.1,2.6460705]
[1753117497596,0.8133,3779.8,3778.8,4.224]
[1753117497759,0.4378,3779.7,3778.9,0.00718614]
[1753117498156,0.4398,3779.7,3778.9,0.00718614]
[1753117498352,0.002,3779.7,3779.6,2.64578262]
[1753117498965,0.4398,3779.7,3779.6,2.64578262]
[1753117499291,0.7531,3779.8,3779.7,2.64571262]
[1753117500095,4.25706615,3780.3,3780.1,2.64541228]
[1753117500401,0.132,3779.7,3779.6,2.64578262]
[1753117500557,0.03306703,3780.2,3779.7,2.64565787]
[1753117500758,0.03306703,3780.2,3779.2,0.00717954]
[1753117501096,0.132,3779.7,3779.4,2.64589973]
[1753117501293,3.03306703,3780.2,3778.7,0.4354]
[1753117501294,0.132,3779.4,3778.9,0.00718224]
[1753117501594,0.132,3779.4,3779.3,2.64599264]
[1753117502557,3.07753851,3779.4,3778.5,7.18163852]
[1753117502891,0.8237,3779.1,3778.5,0.31209813]
[1753117503091,5.14420669,3779.3,3778.5,0.31209813]
[1753117503092,3.0,3778.6,3778.5,0.31209813]
[1753117503295,1.12328103,3778.6,3778.5,0.31209813]
[1753117503656,6.76976385,3778.6,3778.5,0.31209813]
[1753117503862,3.8237,3778.6,3778.5,0.31209813]
[1753117504093,4.35227214,3778.6,3778.5,0.31209813]
[1753117504607,7.03183599,3778.6,3778.5,0.31209813]
[1753117504901,4.61877214,3778.6,3778.5,0.31209813]
[1753117505066,4.65185317,3778.6,3778.5,0.31209813]
[1753117505463,11.52033599,3778.6,3778.5,0.31209813]
[1753117505669,8.84077214,3778.6,3778.5,0.31209813]
[1753117505896,4.61877214,3778.6,3778.5,0.31209813]
[1753117506213,5.57427214,3778.6,3778.5,0.31209813]
[1753117507721,5.57427214,3778.6,3777.6,0.4364]
[1753117507722,6.19655286,3778.5,3777.6,0.001]
[1753117508034,12.04956991,3778.5,3777.6,0.001]
[1753117508162,12.016488,3778.5,3777.6,0.001]
[1753117508606,7.794488,3778.5,3777.6,0.001]
[1753117508820,0.7707,3778.5,3778.0,2.64684381]
[1753117509018,0.8061,3779.0,3778.4,2.6476229]
[1753117509302,0.8061,3779.6,3779.1,2.64611653]
[1753117509565,0.8061,3779.6,3779.5,2.64585262]
[1753117509801,0.7638,3779.9,3779.6,2.64577243]
[1753117510096,0.7638,3779.9,3779.7,0.4354]
[1753117510097,4.221,3779.9,3779.7,0.4354]
[1753117510299,0.79686615,3780.3,3780.0,2.64549719]
[1753117510514,4.221,3780.2,3779.8,3.08098174]
[1753117510672,4.75274703,3780.2,3779.8,0.4354]
[1753117510863,4.75274703,3780.2,3779.4,2.64591083]
[1753117511077,4.75274703,3780.2,3779.5,2.64585262]
[1753117511290,4.75274703,3780.2,3779.8,2.64563539]
[1753117511495,4.221,3780.1,3779.7,2.64569072]
[1753117511700,0.03306878,3780.0,3779.8,2.64562842]
[1753117511907,0.03306878,3780.0,3779.4,0.00717739]
[1753117512108,4.221,3779.9,3779.7,2.64566047]
[1753117512293,4.221,3779.9,3779.3,0.4354]
[1753117512617,0.03306878,3780.0,3779.9,2.64557263]
[1753117512908,4.22,3779.8,3779.7,2.64571262]
[1753117514901,4.22,3779.8,3779.1,0.44257874]
[1753117515226,4.22,3779.8,3778.3,0.001]
[1753117515227,0.422,3779.8,3778.3,0.001]
[1753117515430,0.8001,3779.6,3779.1,2.64611349]
[1753117515633,0.03307315,3779.5,3779.1,2.64610876]
[1753117515933,0.03307315,3779.5,3778.9,2.64625873]
[1753117516300,0.03307315,3779.5,3778.4,0.8019]
[1753117516615,0.03307315,3779.5,3778.5,0.00719236]
[1753117516784,0.56494047,3779.5,3778.5,0.46479236]
[1753117516985,0.56494047,3779.5,3779.0,2.64615997]
[1753117517181,0.56494047,3779.5,3778.8,0.7535]
[1753117517419,4.219,3779.4,3779.2,2.64601376]
[1753117517622,4.219,3779.4,3779.3,2.64599264]
[1753117517802,0.132,3779.0,3778.9,0.00718536]
[1753117518008,0.132,3779.0,3778.9,2.6462692]
[1753117518211,0.132,3779.0,3778.8,2.64633175]
[1753117518413,0.03307403,3779.4,3779.0,2.64613781]
[1753117518635,0.132,3778.7,3778.6,2.64648282]
[1753117518932,0.132,3778.7,3778.6,3.10408282]
[1753117519425,4.35,3779.1,3779.0,2.64620269]
[1753117519638,0.132,3779.1,3779.0,2.64620269]
[1753117519977,0.132,3779.1,3779.0,3.10380269]
[1753117522126,0.8001,3779.6,3779.5,2.64585262]
[1753117522429,0.002,3779.8,3779.7,2.64571262]
[1753117522628,0.132,3779.5,3778.8,3.57441168]
[1753117522809,0.132,3779.5,3779.3,2.64594826]
[1753117523007,0.30157053,3779.8,3778.8,0.132]
[1753117523008,0.132,3779.3,3779.2,2.64606265]
[1753117523536,0.132,3779.3,3778.5,2.64751505]
[1753117523738,0.132,3779.0,3778.7,2.64640883]
[1753117523939,0.132,3778.8,3778.6,0.00719295]
[1753117524234,0.132,3778.8,3778.7,2.64641278]
[1753117525430,0.132,3778.8,3778.7,3.10401278]
[1753117525840,0.002,3779.8,3778.8,0.8085]
[1753117526042,0.002,3779.8,3779.7,2.64571262]
[1753117526210,4.218,3779.8,3779.7,2.64571262]
[1753117526737,0.002,3779.8,3779.7,2.64571262]
[1753117527608,0.134,3779.8,3779.7,3.10331262]
[1753117527919,0.002,3779.8,3779.7,3.10331262]
[1753117528238,0.002,3779.8,3779.7,3.11049022]
[1753117528759,0.002,3779.8,3779.7,2.64571262]
[1753117528760,0.8064,3779.8,3779.7,2.64571262]
[1753117528905,0.8064,3779.8,3779.6,2.64576281]
[1753117529108,0.132,3779.6,3779.5,2.6458304]
[1753117529806,0.132,3779.6,3778.8,4.215]
[1753117530001,0.132,3779.3,3779.2,2.64606265]
[1753117535049,0.132,3779.3,3779.2,3.110849]
[1753117535311,0.002,3779.8,3779.7,2.64571262]
[1753117535510,0.134,3779.8,3779.7,2.64571262]
[1753117537978,0.134,3779.8,3779.7,3.10331262]
[1753117539194,0.134,3779.8,3779.6,2.64576708]
[1753117539414,0.132,3779.6,3778.9,0.7873]
[1753117539594,0.132,3779.4,3779.3,2.64593529]
[1753117540250,0.132,3779.4,3779.3,2.64599264]
[1753117541154,0.132,3779.4,3779.2,2.64603817]
[1753117541356,0.132,3779.4,3778.9,2.64626724]
[1753117541570,0.132,3779.4,3779.3,2.64599264]
[1753117542189,0.132,3779.4,3779.3,3.10359264]
[1753117542566,4.211,3779.7,3779.6,2.64578262]
[1753117542885,4.343,3779.7,3779.6,3.10338262]
[1753117543971,4.343,3779.7,3779.6,2.64578262]
[1753117544170,4.343,3779.7,3779.6,3.10338262]
[1753117544494,0.132,3779.7,3779.6,3.10338262]
[1753117545494,0.132,3779.7,3779.6,3.45707706]
[1753117545687,0.002,3779.8,3779.7,2.64571262]
[1753117546071,0.002,3779.8,3779.7,3.10331262]
[1753117546759,0.002,3779.8,3779.7,3.23531262]
[1753117547090,0.002,3779.8,3779.7,7.44431262]
[1753117550177,0.002,3780.1,3780.0,3.47420264]
[1753117550394,0.002,3780.1,3780.0,2.65267499]
[1753117550733,0.002,3780.1,3780.0,2.64550264]
[1753117551066,0.002,3780.1,3778.6,13.91728847]
[1753117551067,0.002,3780.1,3779.9,2.64555689]
[1753117551272,0.002,3780.1,3780.0,2.64550264]
[1753117552981,0.7727,3780.0,3778.7,0.4608]
[1753117553293,0.8228,3779.8,3779.0,2.64619477]
[1753117553512,19.0065714,3779.7,3779.1,2.6461239]
[1753117553713,2.2475027,3779.6,3779.0,2.64619213]
[1753117553861,0.03307315,3779.5,3778.4,0.00818553]
[1753117554064,4.207,3779.5,3779.2,2.64600015]
[1753117554498,0.03307403,3779.4,3778.8,2.64627431]
[1753117554706,0.03307403,3779.4,3778.7,0.00718631]
[1753117554905,0.03307403,3779.4,3778.9,2.64625382]
[1753117555074,0.03307403,3779.4,3779.2,2.64604366]
[1753117555274,0.03307403,3779.4,3779.1,2.64611295]
[1753117555473,0.03307403,3779.4,3779.2,2.64605174]
[1753117555675,0.03307403,3779.4,3779.0,2.64619744]
[1753117555924,0.03307403,3779.4,3779.3,2.64599264]
[1753117556122,2.2475027,3779.6,3778.8,2.64634275]
[1753117556322,18.706,3779.7,3779.4,2.64590524]
[1753117556881,18.706,3779.7,3779.5,2.64583463]
[1753117557480,18.706,3779.7,3778.9,0.00718808]
[1753117557678,2.6788549,3779.6,3778.7,2.64636316]
[1753117557886,0.03307228,3779.6,3778.5,0.00818808]
[1753117558188,4.206,3779.5,3779.0,2.64618875]
[1753117558982,4.206,3779.5,3778.8,2.64634275]
[1753117559228,0.03307403,3779.4,3778.8,2.64634275]
[1753117559527,2.67900079,3779.4,3778.7,3.10719746]
[1753117559834,2.67900079,3779.4,3778.5,2.65473126]
[1753117559984,0.03307403,3779.4,3778.6,2.64648282]
[1753117560183,0.132,3778.8,3778.7,2.64641278]
[1753117560425,0.132,3778.8,3778.7,3.10721278]
[1753117560779,0.132,3778.8,3778.5,0.001]
[1753117560780,2.64648282,3778.6,3778.5,0.001]
[1753117561143,7.54754684,3778.6,3778.5,0.001]
[1753117561427,22.28096581,3778.6,3778.5,0.001]
[1753117561782,26.48596581,3778.6,3778.5,0.001]
[1753117563727,26.48596581,3778.6,3777.7,0.001]
[1753117563728,4.02783306,3778.1,3777.7,0.001]
[1753117563895,3.132,3778.5,3776.6,2.64886236]
[1753117563896,3.19781422,3776.7,3776.6,0.001]
[1753117564098,22.27440979,3776.7,3776.6,0.001]
[1753117564307,37.04090979,3776.7,3776.6,1e-08]
[1753117564518,6.44730508,3776.0,3775.9,0.001]
[1753117564817,10.65230508,3776.0,3775.9,0.001]
[1753117565018,6.44730508,3776.0,3775.9,0.001]
[1753117565218,27.685617,3776.0,3775.9,0.001]
[1753117566039,27.81446161,3776.0,3775.9,0.001]
[1753117566854,23.60946161,3776.0,3775.9,1e-08]
[1753117566984,27.81346161,3776.0,3775.9,1e-08]
[1753117567186,3.19886628,3775.2,3774.3,0.001]
[1753117567432,11.55076373,3775.2,3774.3,0.001]
[1753117567613,11.51765291,3775.2,3774.3,0.001]
[1753117567826,32.63615291,3775.2,3774.3,0.001]
[1753117568135,28.43215291,3775.2,3775.1,1e-08]
[1753117568285,32.63815291,3775.2,3775.1,1e-08]
[1753117569292,32.63815291,3775.2,3774.3,0.001]
[1753117569293,6.99432772,3774.4,3774.3,0.001]
[1753117569533,13.23577553,3774.4,3774.3,0.001]
[1753117569936,28.00227553,3774.4,3774.3,0.001]
[1753117570621,28.00427553,3774.4,3774.3,0.001]
[1753117570987,20.88134781,3774.4,3774.3,0.001]
[1753117571219,25.08734781,3774.4,3774.3,0.001]
[1753117571420,27.73677553,3774.4,3774.3,0.001]
[1753117571921,25.08734781,3774.4,3774.3,0.001]
[1753117572254,28.00327553,3774.4,3774.3,0.001]
[1753117572703,34.35727553,3774.4,3774.3,1e-08]
[1753117572919,42.16727553,3774.4,3774.3,1e-08]
[1753117573693,42.16827553,3774.4,3774.3,1e-08]
[1753117573891,34.35827553,3774.4,3774.3,1e-08]
[1753117574725,30.15127553,3774.4,3774.3,1e-08]
[1753117574905,34.35727553,3774.4,3774.3,1e-08]
[1753117576136,34.09077553,3774.4,3774.3,1e-08]
[1753117576438,24.23534781,3774.4,3774.3,1e-08]
[1753117576641,15.2949,3774.4,3774.3,1e-08]
[1753117576954,14.70329511,3774.4,3774.3,3.10829793]
[1753117577251,14.5,3774.4,3774.3,3.10829793]
[1753117577546,14.5,3774.4,3774.3,0.45880001]
[1753117577547,18.706,3774.4,3774.3,0.45880001]
[1753117577744,18.706,3774.4,3774.3,1e-08]
[1753117578152,23.77458916,3774.4,3774.3,1e-08]
[1753117578450,25.11608916,3774.4,3774.3,1e-08]
[1753117578752,27.76551688,3774.4,3774.3,1e-08]
[1753117579834,25.11608916,3774.4,3774.3,1e-08]
[1753117580009,20.91008916,3774.4,3774.3,1e-08]
[1753117580199,20.11858916,3774.4,3774.3,1e-08]
[1753117580620,17.5,3774.4,3774.3,3.10829793]
[1753117580807,21.706,3774.4,3774.3,3.10829793]
[1753117581013,18.706,3774.4,3774.3,3.10829793]
[1753117581900,0.132,3774.4,3774.3,3.10829793]
[1753117582109,0.002,3775.2,3775.1,2.64893645]
[1753117582322,4.208,3775.2,3775.1,2.64893645]
[1753117582528,4.208,3775.2,3775.1,3.10773645]
[1753117583136,0.132,3775.1,3774.9,2.64905559]
[1753117583302,0.132,3774.9,3774.5,0.4588]
[1753117583498,4.205,3774.8,3774.7,2.64921715]
[1753117583735,4.205,3774.8,3774.3,1e-08]
[1753117583736,0.132,3774.7,3774.3,2.64947165]
[1753117583942,0.132,3774.7,3774.6,2.64928734]
[1753117584335,0.132,3774.7,3774.6,3.10808734]
[1753117584804,0.132,3774.7,3774.6,0.4588]
[1753117584805,0.16511521,3774.7,3774.6,0.4588]
[1753117585132,0.16511521,3774.7,3774.6,3.10808734]
[1753117585133,4.37011521,3774.7,3774.6,3.10808734]
[1753117585736,4.337,3774.7,3774.6,3.10808734]
[1753117588051,4.337,3774.7,3774.6,0.4588]
[1753117588390,4.337,3774.7,3774.3,1e-08]
[1753117588531,0.03311609,3774.6,3774.3,1e-08]
[1753117588883,4.204,3774.5,3774.3,1e-08]
[1753117589049,0.03311784,3774.4,3774.3,1e-08]
[1753117589679,0.03311784,3774.4,3774.3,3.10829793]
[1753117589859,0.03311609,3774.6,3774.5,2.64935753]
[1753117590180,4.204,3774.6,3774.4,2.64940934]
[1753117590333,0.03311609,3774.6,3774.4,3.10820934]
[1753117590535,4.203,3774.5,3774.4,3.10820934]
[1753117590889,14.502,3774.7,3774.6,3.47798734]
[1753117591184,14.502,3774.7,3774.6,3.10808734]
[1753117591331,18.705,3774.7,3774.6,3.10808734]
[1753117591530,4.205,3774.7,3774.6,3.10808734]
[1753117591770,0.002,3774.7,3774.6,3.10808734]
[1753117591974,0.002,3775.2,3775.1,3.47763645]
[1753117592568,0.002,3775.2,3775.1,3.94369464]
[1753117593645,1e-08,3775.2,3775.1,3.94369464]
[1753117594630,1e-08,3775.2,3775.1,3.93643645]
[1753117595171,1e-08,3775.2,3774.9,2.64900824]
[1753117595372,1e-08,3775.2,3775.1,2.64893645]
[1753117595898,1e-08,3775.2,3775.1,3.10773645]
[1753117596869,1e-08,3775.2,3774.9,2.64907677]
[1753117597085,0.03311083,3775.2,3775.0,2.64897669]
[1753117597280,0.03311083,3775.2,3775.1,2.64893645]
[1753117597281,3.00000001,3775.2,3775.1,2.64893645]
[1753117597484,0.132,3775.1,3775.0,2.64899037]
[1753117597702,0.132,3775.1,3774.7,0.8332]
[1753117597703,3.03311083,3775.2,3775.1,2.64893645]
[1753117597877,3.03311083,3775.2,3775.0,2.64898444]
[1753117598197,3.03311083,3775.2,3774.7,0.8332]
[1753117598198,7.23411083,3775.2,3774.7,0.8332]
[1753117598405,0.132,3774.9,3774.8,3.10794697]
[1753117598700,0.132,3774.9,3774.8,2.64914697]
[1753117599261,0.132,3774.9,3774.8,3.10794697]
[1753117600595,0.132,3774.9,3774.8,0.4588]
[1753117600759,0.132,3774.9,3774.5,2.64929475]
[1753117600968,0.132,3774.7,3774.4,3.10821075]
[1753117601169,0.132,3774.5,3774.3,1e-08]
[1753117601372,14.5,3774.6,3774.3,1e-08]
[1753117601571,14.5,3774.6,3774.5,2.64935753]
[1753117601786,14.5,3774.6,3774.5,3.10815753]
[1753117602065,14.632,3774.6,3774.5,3.10815753]
[1753117602311,0.132,3774.6,3774.5,3.10815753]
[1753117604282,4.2,3775.1,3774.5,3.10815753]
[1753117604601,0.132,3774.8,3774.7,2.64921715]
[1753117605309,1e-08,3775.2,3775.1,2.64893645]
[1753117605610,1e-08,3775.2,3775.1,3.10773645]
[1753117606209,0.002,3776.0,3775.1,3.90363645]
[1753117606412,0.002,3776.0,3775.9,14.19127161]
[1753117607020,0.002,3776.0,3775.9,3.91387522]
[1753117607224,0.002,3776.0,3775.9,4.27481382]
[1753117607425,0.002,3776.0,3775.9,3.91387522]
[1753117607724,0.002,3776.0,3775.9,3.92111938]
[1753117608088,0.002,3776.0,3775.9,3.91387522]
[1753117608285,0.002,3776.0,3775.9,3.11797522]
[1753117608736,0.002,3776.0,3775.7,2.64848575]
[1753117608895,0.002,3776.0,3775.9,2.64837522]
[1753117609226,0.002,3776.0,3775.8,3.11799651]
[1753117609415,0.002,3776.0,3775.5,4.198]
[1753117609610,0.002,3776.0,3775.4,6.8467217]
[1753117609815,0.03510381,3776.0,3775.6,2.64852466]
[1753117610122,0.03510381,3776.0,3775.4,6.84665905]
[1753117610323,0.03510381,3776.0,3775.5,2.64859461]
[1753117610527,0.03510381,3776.0,3775.7,2.6484908]
[1753117610830,0.002,3776.0,3775.7,2.6484908]
[1753117611224,0.002,3776.0,3775.7,3.1180908]
[1753117611424,0.002,3776.0,3775.6,2.64857906]
[1753117611623,0.002,3776.0,3775.5,3.11824483]
[1753117611825,0.002,3776.0,3775.8,2.64841733]
[1753117612199,0.002,3776.0,3775.9,3.11797522]
[1753117613040,0.002,3776.0,3775.9,1.2362]
[1753117613446,0.002,3776.0,3775.9,0.4696]
[1753117613649,0.002,3776.0,3775.5,3.41519366]
[1753117613650,0.002,3776.0,3775.6,4.6666]
[1753117613852,0.002,3776.0,3775.8,0.4696]
[1753117614223,0.002,3776.0,3775.8,3.11798839]
[1753117614428,0.002,3776.0,3775.4,4.197]
[1753117614866,0.002,3776.0,3775.5,0.4696]
[1753117615037,0.002,3776.0,3775.9,3.40627522]
[1753117615241,0.002,3776.0,3775.9,3.41351938]
[1753117615420,0.002,3776.0,3775.9,3.11797522]
[1753117617470,0.002,3776.0,3775.9,7.31397522]
[1753117619376,0.002,3776.0,3775.9,2.64837522]
[1753117619580,0.134,3776.0,3775.9,2.64837522]
[1753117619750,0.134,3776.0,3775.9,3.11797522]
[1753117619957,0.9388,3776.0,3775.5,2.64861038]
[1753117620268,0.39180902,3775.9,3775.0,0.4696]
[1753117620576,0.132,3775.3,3775.2,2.64886628]
[1753117620779,0.002,3776.0,3775.9,2.64837522]
[1753117620981,0.002,3776.0,3775.9,3.11797522]
[1753117621183,0.134,3776.0,3775.9,3.11797522]
[1753117621389,0.134,3776.0,3775.9,2.64837522]
[1753117621602,0.134,3776.0,3775.4,0.8211]
[1753117621766,0.134,3776.0,3775.1,0.4696]
[1753117621767,0.280223,3776.0,3775.1,3.93962637]
[1753117622086,0.132,3775.6,3775.5,3.1182558]
[1753117623591,0.002,3776.0,3775.9,2.64837522]
[1753117624293,0.002,3776.0,3775.9,3.11797522]
[1753117625492,0.002,3776.0,3775.9,3.87347522]
[1753117628776,0.002,3776.0,3775.9,8.06647522]
[1753117629300,0.002,3776.0,3775.9,8.19847522]
[1753117629737,0.002,3776.0,3775.9,11.19847522]
[1753117630668,0.002,3776.0,3775.9,1.3571]
[1753117630865,0.002,3776.0,3775.9,0.4696]
[1753117631095,0.002,3776.0,3775.6,0.7595]
[1753117631096,0.002,3776.0,3775.8,6.84140776]
[1753117631469,0.002,3776.0,3775.9,2.64837522]
[1753117631670,0.002,3776.0,3775.9,3.11797522]
[1753117632709,0.002,3776.0,3775.9,3.12521938]
[1753117632914,0.002,3776.0,3775.9,4.01671938]
[1753117635176,0.002,3776.0,3775.9,4.00947522]
[1753117635374,0.002,3776.0,3775.9,2.64837522]
[1753117636045,0.002,3776.0,3775.9,3.11797522]
[1753117641483,0.002,3776.0,3775.9,2.64837522]
[1753117643119,0.134,3776.0,3775.9,2.64837522]
[1753117645618,0.002,3776.0,3775.9,3.09967522]
[1753117646290,0.002,3776.0,3775.9,3.89861938]
[1753117646695,0.002,3776.0,3775.9,8.08861938]
[1753117646938,0.002,3776.0,3775.9,8.08137522]
[1753117650765,0.134,3776.8,3776.7,3.45671422]
[1753117650766,1e-08,3776.8,3776.7,3.45671422]
[1753117650979,0.002,3777.6,3777.5,2.64725347]
[1753117651186,0.002,3777.6,3777.5,2.65446959]
[1753117651539,0.002,3777.6,3777.5,3.10576959]
[1753117653561,0.002,3777.6,3777.5,2.65446959]
[1753117653765,0.002,3777.6,3777.5,2.64725347]